fUSD/lending_fUSD_20250505
["ID","MTS","AMOUNT","RATE_DAILY","PERIOD"]
[359908047,1746412240141,-450.0,0.00019997,2]
[359908049,1746412240150,-450.0,0.00019997,2]
[359908051,1746412240159,-450.0,0.00019997,2]
[359908053,1746412240168,-450.0,0.00019997,2]
[359908055,1746412240177,-450.0,0.00019997,2]
[359908057,1746412240186,-262.28551055,0.00019997,2]
[359908059,1746412240195,-450.0,0.00019997,2]
[359908061,1746412240204,-231.61395276,0.00019997,2]
[359908063,1746412240215,-450.0,0.00019997,2]
[359908065,1746412240223,-450.0,0.00019997,2]
[359908067,1746412240233,-450.0,0.00019997,2]
[359908069,1746412240242,-450.0,0.00019997,2]
[359908071,1746412240253,-450.0,0.00019997,2]
[359908073,1746412240263,-502.53110081,0.00019997,2]
[359908075,1746412240271,-458.87139797,0.00019997,2]
[359908077,1746412240280,-486.75600233,0.00019997,2]
[359908079,1746412240289,-450.0,0.00019997,2]
[359908081,1746412240300,-484.08393194,0.00019997,2]
[359908083,1746412240309,-450.0,0.00019997,2]
[359908084,1746412240317,-514.10033296,0.00019997,2]
[359908086,1746412240326,-450.0,0.00019997,2]
[359908089,1746412240336,-450.0,0.00019997,2]
[359908091,1746412240345,-411.0064675,0.00019997,2]
[359908093,1746412240355,-450.0,0.00019997,2]
[359908095,1746412240364,-450.0,0.00019997,2]
[359908097,1746412240374,-450.0,0.00019997,2]
[359908099,1746412240383,-482.14073974,0.00019997,2]
[359908101,1746412240393,-475.9336918,0.00019997,2]
[359908103,1746412240402,-536.91600592,0.00019997,2]
[359908105,1746412240411,-472.96390069,0.00019997,2]
[359908107,1746412240420,-255.55339827,0.00019997,2]
[359908109,1746412240429,-472.36013284,0.00019997,2]
[359908111,1746412240438,-450.0,0.00019997,2]
[359908113,1746412240447,-450.0,0.00019997,2]
[359908115,1746412240455,-639.98049471,0.00019997,2]
[359908117,1746412240463,-509.82155977,0.00019997,2]
[359908119,1746412240473,-525.33872342,0.00019997,2]
[359908121,1746412240482,-463.69404304,0.00019997,2]
[359908123,1746412240491,-453.22567506,0.00019997,2]
[359908125,1746412240500,-472.12419073,0.00019997,2]
[359908127,1746412240510,-470.94612008,0.00019997,2]
[359908129,1746412240522,-469.27245692,0.00019997,2]
[359908131,1746412240531,-509.87857998,0.00019997,2]
[359908133,1746412240541,-165.24769332,0.00019997,2]
[359908135,1746412240550,-460.26618022,0.00019997,2]
[359908137,1746412240560,-462.77035618,0.00019997,2]
[359908139,1746412240569,-450.0,0.00019997,2]
[359908141,1746412240579,-481.64015525,0.00019997,2]
[359908143,1746412240589,-526.84821507,0.00019997,2]
[359908145,1746412240598,-450.0,0.00019997,2]
[359908147,1746412240607,-459.8576753,0.00019997,2]
[359908149,1746412240616,-459.47171882,0.00019997,2]
[359908151,1746412240625,-450.0,0.00019997,2]
[359908153,1746412240633,-470.66081904,0.00019997,2]
[359908155,1746412240642,-459.31224249,0.00019997,2]
[359908157,1746412240651,-214.5488195,0.00019997,2]
[359908159,1746412240660,-546.99274835,0.00019997,2]
[359908161,1746412240669,-491.56092565,0.00019997,2]
[359908163,1746412240679,-450.0,0.00019997,2]
[359908165,1746412240688,-170.37861243,0.00019997,2]
[359908185,1746412240858,-406.01294985,0.00019997,2]
[359908187,1746412240868,-476.52908061,0.00019997,2]
[359908189,1746412240877,-450.0,0.00019997,2]
[359908191,1746412240886,-474.56678846,0.00019997,2]
[359908193,1746412240895,-450.0,0.00019997,2]
[359908195,1746412240904,-453.39181718,0.00019997,2]
[359908197,1746412240913,-476.21231751,0.00019997,2]
[359908199,1746412240923,-450.0,0.00019997,2]
[359908201,1746412240932,-489.29023651,0.00019997,2]
[359908203,1746412240940,-472.34378936,0.00019997,2]
[359908205,1746412240949,-489.98549927,0.00019997,2]
[359908207,1746412240958,-462.41933236,0.00019997,2]
[359908209,1746412240968,-492.14316457,0.00019997,2]
[359908211,1746412240977,-450.0,0.00019997,2]
[359908213,1746412240986,-461.19981582,0.00019997,2]
[359908215,1746412240996,-487.68218877,0.00019997,2]
[359908217,1746412241005,-483.72,0.00019997,2]
[359908219,1746412241014,-450.0,0.00019997,2]
[359908221,1746412241023,-478.51910426,0.00019997,2]
[359908223,1746412241032,-453.87245298,0.00019997,2]
[359908225,1746412241041,-450.0,0.00019997,2]
[359908227,1746412241050,-453.8537746,0.00019997,2]
[359908229,1746412241059,-454.05078139,0.00019997,2]
[359908231,1746412241069,-519.74279589,0.00019997,2]
[359908232,1746412241078,-387.25791908,0.00019997,2]
[359908235,1746412241089,-538.13270252,0.00019997,2]
[359908236,1746412241098,-472.88880859,0.00019997,2]
[359908238,1746412241108,-480.57375331,0.00019997,2]
[359908240,1746412241117,-450.0,0.00019997,2]
[359908242,1746412241125,-440.0,0.00019997,2]
[359908244,1746412241134,-477.83338011,0.00019997,2]
[359908246,1746412241142,-500.0,0.00019997,2]
[359908248,1746412241151,-450.0,0.00019997,2]
[359908250,1746412241160,-509.99911364,0.00019997,2]
[359908252,1746412241170,-535.03318908,0.00019997,2]
[359908254,1746412241179,-450.0,0.00019997,2]
[359908256,1746412241188,-450.0,0.00019997,2]
[359908258,1746412241197,-450.0,0.00019997,2]
[359908260,1746412241208,-450.0,0.00019997,2]
[359908262,1746412241218,-525.85,0.00019997,2]
[359908264,1746412241227,-450.0,0.00019997,2]
[359908266,1746412241235,-500.0,0.00019997,2]
[359908268,1746412241245,-450.0,0.00019997,2]
[359908270,1746412241254,-452.28311947,0.00019997,2]
[359908272,1746412241263,-482.08728784,0.00019997,2]
[359908274,1746412241272,-481.02212628,0.00019997,2]
[359908276,1746412241281,-450.0,0.00019997,2]
[359908278,1746412241290,-450.0,0.00019997,2]
[359908280,1746412241300,-469.93466157,0.00019997,2]
[359908281,1746412241309,-450.0,0.00019997,2]
[359908283,1746412241318,-450.0,0.00019997,2]
[359908286,1746412241328,-500.0,0.00019997,2]
[359908288,1746412241340,-450.0,0.00019997,2]
[359908290,1746412241350,-478.44657695,0.00019997,2]
[359908291,1746412241359,-508.31646053,0.00019997,2]
[359908293,1746412241369,-568.96,0.00019997,2]
[359908296,1746412241378,-500.0,0.00019997,2]
[359908297,1746412241388,-400.0,0.00019997,2]
[359908299,1746412241397,-450.59938687,0.00019997,2]
[359908301,1746412241406,-450.0,0.00019997,2]
[359908303,1746412241416,-450.0,0.00019997,2]
[359908305,1746412241425,-469.76475955,0.00019997,2]
[359908307,1746412241435,-450.0,0.00019997,2]
[359908309,1746412241445,-450.0,0.00019997,2]
[359908312,1746412241454,-450.0,0.00019997,2]
[359908313,1746412241463,-509.38236254,0.00019997,2]
[359908315,1746412241472,-257.70395096,0.00019997,2]
[359908317,1746412241482,-450.0,0.00019997,2]
[359908319,1746412241491,-450.0,0.00019997,2]
[359908321,1746412241501,-463.07953215,0.00019997,2]
[359908323,1746412241510,-450.0,0.00019997,2]
[359908325,1746412241518,-476.84656378,0.00019997,2]
[359908327,1746412241527,-248.58051921,0.00019997,2]
[359908329,1746412241536,-456.83457538,0.00019997,2]
[359908331,1746412241546,-508.5990812,0.00019997,2]
[359908333,1746412241555,-478.61307033,0.00019997,2]
[359908335,1746412241564,-450.0,0.00019997,2]
[359908337,1746412241574,-477.39069109,0.00019997,2]
[359908339,1746412241583,-458.37455662,0.00019997,2]
[359908342,1746412241595,-1797.91,0.00019997,2]
[359908344,1746412241604,-455.25055711,0.00019997,2]
[359908346,1746412241613,-423.86,0.00019997,2]
[359908348,1746412241623,-450.0,0.00019997,2]
[359908349,1746412241632,-477.05590144,0.00019997,2]
[359908351,1746412241641,-450.0,0.00019997,2]
[359908353,1746412241650,-474.32275565,0.00019997,2]
[359908355,1746412241659,-774.54,0.00019997,2]
[359908357,1746412241669,-450.0,0.00019997,2]
[359908359,1746412241678,-453.45253457,0.00019997,2]
[359908361,1746412241687,-475.84901368,0.00019997,2]
[359908363,1746412241697,-453.44696973,0.00019997,2]
[359908366,1746412241707,-557.81,0.00019997,2]
[359908367,1746412241716,-508.88117952,0.00019997,2]
[359908369,1746412241726,-502.99934754,0.00019997,2]
[359908371,1746412241735,-500.0,0.00019997,2]
[359908373,1746412241745,-515.18967014,0.00019997,2]
[359908375,1746412241754,-554.30705815,0.00019997,2]
[359908377,1746412241764,-461.1007821,0.00019997,2]
[359908378,1746412241773,-500.0,0.00019997,2]
[359908379,1746412241782,-487.76161689,0.00019997,2]
[359908381,1746412241794,-460.25529459,0.00019997,2]
[359908383,1746412241803,-589.09699934,0.00019997,2]
[359908385,1746412241812,-470.08653175,0.00019997,2]
[359908387,1746412241821,-450.0,0.00019997,2]
[359908389,1746412241830,-494.4797099,0.00019997,2]
[359908391,1746412241840,-450.0,0.00019997,2]
[359908393,1746412241849,-450.0,0.00019997,2]
[359908395,1746412241858,-506.29204897,0.00019997,2]
[359908397,1746412241868,-450.0,0.00019997,2]
[359908399,1746412241878,-550.52523497,0.00019997,2]
[359908401,1746412241888,-470.0,0.00019997,2]
[359908403,1746412241899,-477.52719189,0.00019997,2]
[359908405,1746412241908,-450.0,0.00019997,2]
[359908407,1746412241917,-500.5078654,0.00019997,2]
[359908409,1746412241926,-526.69437625,0.00019997,2]
[359908411,1746412241935,-488.64166291,0.00019997,2]
[359908413,1746412241943,-450.0,0.00019997,2]
[359908415,1746412241953,-455.31648254,0.00019997,2]
[359908417,1746412241962,-450.0,0.00019997,2]
[359908419,1746412241972,-490.0,0.00019997,2]
[359908421,1746412241981,-450.0,0.00019997,2]
[359908423,1746412241990,-450.0,0.00019997,2]
[359908425,1746412242000,-1051.11997559,0.00019998,3]
[359908427,1746412242010,-450.0,0.00019998,2]
[359908429,1746412242019,-450.0,0.00019998,2]
[359908431,1746412242028,-450.0,0.00019998,2]
[359908433,1746412242037,-450.0,0.00019998,2]
[359908434,1746412242047,-450.0,0.00019998,2]
[359908436,1746412242056,-450.0,0.00019998,2]
[359908438,1746412242066,-450.0,0.00019998,2]
[359908440,1746412242075,-388.44833196,0.00019998,2]
[359908443,1746412242086,-450.0,0.00019998,2]
[359908444,1746412242095,-450.0,0.00019998,2]
[359908446,1746412242106,-450.0,0.00019998,2]
[359908448,1746412242117,-450.0,0.00019998,2]
[359908450,1746412242126,-450.0,0.00019998,2]
[359908452,1746412242135,-353.52,0.00019998,2]
[359908454,1746412242144,-450.0,0.00019998,2]
[359908456,1746412242155,-257.87872418,0.00019998,2]
[359908458,1746412242164,-500.0,0.00019998,2]
[359908460,1746412242173,-450.0,0.00019998,2]
[359908462,1746412242182,-485.88246104,0.00019998,2]
[359908464,1746412242191,-168.5,0.00019998,2]
[359908466,1746412242201,-571.63685191,0.00019998,2]
[359908468,1746412242213,-391.1,0.00019998,2]
[359908470,1746412242222,-548.17,0.00019998,2]
[359908472,1746412242232,-464.23,0.00019998,2]
[359908474,1746412242242,-513.85267279,0.00019998,2]
[359908476,1746412242253,-450.0,0.00019998,2]
[359908478,1746412242262,-153.78678361,0.00019998,2]
[359908480,1746412242272,-500.0,0.00019998,2]
[359908482,1746412242283,-450.0,0.00019998,2]
[359908484,1746412242292,-450.0,0.00019998,2]
[359908486,1746412242301,-450.0,0.00019998,2]
[359908488,1746412242310,-520.0,0.00019998,2]
[359908490,1746412242320,-450.0,0.00019998,2]
[359908492,1746412242329,-304.0,0.00019998,2]
[359908494,1746412242340,-468.56,0.00019998,2]
[359908496,1746412242350,-568.96,0.00019998,2]
[359908498,1746412242359,-568.96,0.00019998,2]
[359908500,1746412242369,-568.96,0.00019998,2]
[359908502,1746412242379,-500.0,0.00019998,2]
[359908504,1746412242388,-488.45689752,0.00019998,2]
[359908506,1746412242397,-450.0,0.00019998,2]
[359908508,1746412242407,-450.0,0.00019998,2]
[359908510,1746412242417,-303.2,0.00019998,2]
[359908512,1746412242426,-500.0,0.00019998,2]
[359908514,1746412242436,-500.0,0.00019998,2]
[359908516,1746412242445,-500.0,0.00019998,2]
[359908518,1746412242454,-450.0,0.00019998,2]
[359908520,1746412242463,-558.89558625,0.00019998,2]
[359908522,1746412242471,-450.0,0.00019998,2]
[359908524,1746412242480,-450.0,0.00019998,2]
[359908526,1746412242490,-450.0,0.00019998,2]
[359908528,1746412242499,-450.0,0.00019998,2]
[359908530,1746412242509,-450.0,0.00019998,2]
[359908532,1746412242518,-450.0,0.00019998,2]
[359908534,1746412242528,-500.0,0.00019998,2]
[359908536,1746412242537,-450.0,0.00019998,2]
[359908538,1746412242547,-450.0,0.00019998,2]
[359908539,1746412242557,-450.0,0.00019998,2]
[359908541,1746412242568,-450.0,0.00019998,2]
[359908543,1746412242578,-450.0,0.00019998,2]
[359908545,1746412242589,-450.0,0.00019998,2]
[359908547,1746412242600,-450.0,0.00019998,2]
[359908549,1746412242610,-1797.91,0.00019998,2]
[359908551,1746412242621,-1797.91,0.00019998,2]
[359908553,1746412242630,-1797.91,0.00019998,2]
[359908555,1746412242640,-201.65168614,0.00019998,2]
[359908557,1746412242650,-510.01,0.00019998,2]
[359908559,1746412242661,-1019.14,0.00019998,2]
[359908561,1746412242670,-1019.14,0.00019998,2]
[359908563,1746412242680,-1019.14,0.00019998,2]
[359908565,1746412242691,-150.0,0.00019998,2]
[359908567,1746412242700,-450.0,0.00019998,2]
[359908569,1746412242710,-450.0,0.00019998,2]
[359908571,1746412242719,-450.0,0.00019998,2]
[359908573,1746412242729,-774.54,0.00019998,2]
[359908575,1746412242738,-774.54,0.00019998,2]
[359908577,1746412242747,-774.54,0.00019998,2]
[359908578,1746412242756,-581.29180605,0.00019998,2]
[359908580,1746412242766,-463.88921187,0.00019998,2]
[359908582,1746412242776,-593.68876051,0.00019998,2]
[359908584,1746412242786,-450.0,0.00019998,2]
[359908586,1746412242796,-450.0,0.00019998,2]
[359908588,1746412242806,-301.52850891,0.00019998,2]
[359908590,1746412242816,-450.0,0.00019998,2]
[359908592,1746412242825,-172.23,0.00019998,2]
[359908594,1746412242835,-450.0,0.00019998,2]
[359908596,1746412242846,-450.0,0.00019998,2]
[359908598,1746412242855,-450.0,0.00019998,2]
[359908600,1746412242865,-993.53,0.00019998,2]
[359908602,1746412242875,-993.53,0.00019998,2]
[359908604,1746412242884,-993.53,0.00019998,2]
[359908606,1746412242893,-450.0,0.00019998,2]
[359908607,1746412242902,-450.0,0.00019998,2]
[359908610,1746412242912,-450.0,0.00019998,2]
[359908612,1746412242922,-450.0,0.00019998,2]
[359908613,1746412242931,-450.0,0.00019998,2]
[359908615,1746412242941,-1075.07,0.00019998,2]
[359908617,1746412242951,-1075.07,0.00019998,2]
[359908619,1746412242960,-450.0,0.00019998,2]
[359908621,1746412242969,-1075.07,0.00019998,2]
[359908623,1746412242979,-521.24,0.00019998,2]
[359908625,1746412242988,-500.0,0.00019998,2]
[359908627,1746412242997,-450.0,0.00019998,2]
[359908629,1746412243007,-450.0,0.00019998,2]
[359908631,1746412243016,-450.0,0.00019998,2]
[359908633,1746412243027,-450.0,0.00019998,2]
[359908636,1746412243036,-481.16595515,0.00019998,2]
[359908638,1746412243045,-450.0,0.00019998,2]
[359908640,1746412243054,-450.0,0.00019998,2]
[359908642,1746412243063,-596.08,0.00019998,2]
[359908644,1746412243072,-450.0,0.00019998,2]
[359908646,1746412243081,-450.0,0.00019998,2]
[359908649,1746412243092,-450.0,0.00019998,2]
[359908651,1746412243101,-450.0,0.00019998,2]
[359908653,1746412243110,-500.0,0.00019998,2]
[359908654,1746412243119,-483.76903245,0.00019998,2]
[359908656,1746412243129,-13733.43,0.00019998,2]
[359908658,1746412243138,-13733.43,0.00019998,2]
[359908660,1746412243147,-13733.43,0.00019998,2]
[359908662,1746412243157,-1341.99,0.00019998,2]
[359908664,1746412243166,-1341.99,0.00019998,2]
[359908666,1746412243176,-1341.99,0.00019998,2]
[359908668,1746412243185,-450.0,0.00019998,2]
[359908670,1746412243195,-450.0,0.00019998,2]
[359908672,1746412243205,-416.99226551,0.00019998,2]
[359908674,1746412243216,-450.0,0.00019998,2]
[359908676,1746412243226,-450.0,0.00019998,2]
[359908678,1746412243235,-450.0,0.00019998,2]
[359908680,1746412243245,-451.07288666,0.00019998,2]
[359908682,1746412243255,-450.0,0.00019998,2]
[359908684,1746412243265,-450.0,0.00019998,2]
[359908686,1746412243274,-195.72413108,0.00019998,2]
[359908688,1746412243283,-450.0,0.00019998,2]
[359908690,1746412243293,-450.0,0.00019998,2]
[359908692,1746412243302,-539.42698609,0.00019998,2]
[359908694,1746412243311,-806.0,0.00019999,2]
[359908696,1746412243320,-158.15134534,0.00019999,2]
[359908698,1746412243330,-73209.5804934,0.00019999,2]
[359908873,1746412245519,-527.05919274,0.00019996,2]
[359908875,1746412245528,-557.62803374,0.00019999,2]
[359908878,1746412245539,-1076.31270277,0.00019999,2]
[359908890,1746412245654,-450.0,0.00019996,2]
[359908892,1746412245664,-450.0,0.00019996,2]
[359908894,1746412245674,-450.0,0.00019998,2]
[359908896,1746412245685,-1650.0,0.00019999,2]
[359908937,1746412246024,-450.0,0.00019996,2]
[359908939,1746412246034,-450.0,0.00019996,2]
[359908940,1746412246043,-450.0,0.00019996,2]
[359908942,1746412246052,-450.0,0.00019996,2]
[359908944,1746412246061,-450.0,0.00019996,2]
[359908946,1746412246070,-538.33283278,0.00019998,2]
[359908948,1746412246079,-450.0,0.00019998,2]
[359908950,1746412246092,-450.0,0.00019998,2]
[359908952,1746412246102,-1135.16716722,0.00019999,2]
[359908980,1746412246371,-475.32988049,0.00019996,2]
[359908982,1746412246380,-9002.42842016,0.00019999,2]
[359909663,1746412255871,319.29,0.00019201,2]
[359909664,1746412271760,208.0,0.00030137,120]
[359909665,1746412290564,237.41486243,0.0003,30]
[359909667,1746412406998,250.0,0.00018971,2]
[359909668,1746412445021,164.85,0.00018971,2]
[359909669,1746412445248,164.85,0.0001899,2]
[359909670,1746412445467,164.85,0.00019009,2]
[359909671,1746412445676,164.85,0.00019027,2]
[359909672,1746412445892,164.85,0.00019046,2]
[359909673,1746412446102,164.85,0.00019065,2]
[359909674,1746412482974,9304.43,0.00018971,2]
[359909675,1746412574471,300.0,0.0003,30]
[359909676,1746412596446,5458.46,0.00018971,2]
[359909677,1746412714627,500.0,0.00019452,2]
[359909678,1746412719451,1000.0,0.00018952,2]
[359909679,1746412748290,186.06,0.00019178,2]
[359909680,1746412756090,500.0,0.00027945,30]
[359909681,1746412756686,500.0,0.00029315,30]
[359909682,1746412897979,2230.94,0.00018921,2]
[359909683,1746412917319,399.83,0.00017002,2]
[359909684,1746412917758,399.83,0.00019266,2]
[359909685,1746412926011,299.879305,0.00019491,2]
[359909687,1746412937916,153.56,0.00018921,2]
[359909688,1746412978673,23900.0,0.00018921,2]
[359909689,1746413060682,250.0,0.00017,2]
[359909690,1746413061810,300.0,0.00019,2]
[359909691,1746413093082,200.0,0.00018922,2]
[359909729,1746413287766,319.29,0.00018925,2]
[359909735,1746413390232,500.0,0.00027945,30]
[359909736,1746413390462,500.0,0.00029315,30]
[359909738,1746413432124,-151.0,0.00019589,2]
[359909739,1746413432134,-250.0,0.00019589,2]
[359909740,1746413432143,-500.0,0.00019589,2]
[359909741,1746413432152,-272.20199617,0.00019625,2]
[359909742,1746413432162,-272.20199617,0.00019712,2]
[359909743,1746413432172,-207.4,0.00019714,2]
[359909744,1746413432181,-151.0,0.00019714,2]
[359909745,1746413432191,-668.65185757,0.00019714,2]
[359909746,1746413432199,-151.0,0.00019714,2]
[359909747,1746413432209,-1200.0,0.00019715,2]
[359909748,1746413432218,-300.0,0.00019715,2]
[359909749,1746413432227,-2200.83415009,0.00019716,2]
[359909750,1746413432239,-411.8444199,0.00019716,2]
[359909751,1746413432253,-1836.59999999,0.00019716,2]
[359909752,1746413432265,-1154.48991978,0.00019716,2]
[359909753,1746413432280,-544.02,0.00019716,2]
[359909754,1746413432291,-583.18548524,0.00019716,2]
[359909755,1746413432302,-1591.08042183,0.00019716,2]
[359909756,1746413432336,-3381.32483769,0.00019716,2]
[359909757,1746413432346,-312.46562709,0.00019725,2]
[359909767,1746413432527,-845.08381471,0.00019726,2]
[359909769,1746413432538,-3826.76409351,0.00019726,2]
[359909776,1746413432708,-556.879995,0.00019726,2]
[359909778,1746413438171,-2274.40999996,0.00019726,2]
[359909779,1746413438183,-1536.52,0.00019726,2]
[359909780,1746413438225,-316.73,0.00019726,2]
[359909781,1746413438237,-6708.4000002,0.00019726,2]
[359909782,1746413438278,-5118.92315907,0.00019726,2]
[359909783,1746413438387,-422.74999925,0.00019726,2]
[359909785,1746413438494,-312.45839755,0.00019726,2]
[359909786,1746413438506,-1013.88322961,0.00019726,2]
[359909787,1746413438518,-10084.48428552,0.00019726,2]
[359909788,1746413438529,-478.736916,0.00019726,2]
[359909789,1746413438546,-757.46541544,0.00019726,2]
[359909792,1746413440326,-7952.29813967,0.00019726,2]
[359909793,1746413440336,-1505.0,0.00019732,2]
[359909794,1746413440345,-160.2234638,0.00019799,2]
[359909795,1746413440355,-272.20199617,0.00019799,2]
[359909796,1746413440364,-223.94303537,0.000198,23]
[359909797,1746413440374,-625.0591,0.00019896,2]
[359909798,1746413440383,-3392.5169,0.00019897,2]
[359909799,1746413440392,-2776.40210425,0.00019897,2]
[359909800,1746413440402,-2776.4021042,0.00019897,2]
[359909801,1746413440411,-2776.4021042,0.00019898,2]
[359909802,1746413440422,-2776.4021042,0.00019898,2]
[359909803,1746413440431,-263.25846256,0.00019898,2]
[359909804,1746413440440,-2776.4021042,0.00019898,2]
[359909805,1746413440450,-531.7332,0.00019899,2]
[359909806,1746413440460,-2776.4021042,0.00019899,2]
[359909807,1746413440470,-2776.4021042,0.00019899,2]
[359909808,1746413440479,-2776.4021042,0.00019899,2]
[359909809,1746413440489,-2776.4021042,0.000199,2]
[359909810,1746413440498,-186.71508472,0.000199,2]
[359909811,1746413440508,-2776.4021042,0.000199,2]
[359909812,1746413440517,-7153.78348221,0.000199,2]
[359909813,1746413440526,-1505.0,0.00019935,2]
[359909814,1746413440536,-500.0,0.00019973,2]
[359909815,1746413440546,-500.80786321,0.00019973,2]
[359909816,1746413440555,-1133.215,0.00019984,2]
[359909817,1746413440565,-926.0,0.00019986,2]
[359909818,1746413440575,-1300.0,0.00019986,2]
[359909819,1746413440589,-797.0,0.00019986,2]
[359909820,1746413440598,-202.624,0.00019986,2]
[359909821,1746413440608,-450.0,0.00019996,2]
[359909822,1746413440618,-450.0,0.00019996,2]
[359909823,1746413440627,-500.0,0.00019996,2]
[359909824,1746413440637,-450.0,0.00019996,2]
[359909825,1746413440646,-450.0,0.00019996,2]
[359909826,1746413440657,-495.97112608,0.00019996,2]
[359909827,1746413440666,-434.68452417,0.00019996,2]
[359909828,1746413440675,-456.07764496,0.00019996,2]
[359909829,1746413440684,-470.0,0.00019996,2]
[359909830,1746413440694,-412.41337402,0.00019996,2]
[359909831,1746413440703,-450.0,0.00019996,2]
[359909832,1746413440713,-450.0,0.00019996,2]
[359909833,1746413440723,-450.0,0.00019996,2]
[359909834,1746413440732,-450.0,0.00019996,2]
[359909835,1746413440741,-438.0,0.00019996,2]
[359909836,1746413440751,-450.0,0.00019996,2]
[359909837,1746413440761,-361.55879876,0.00019996,2]
[359909838,1746413440770,-450.0,0.00019996,2]
[359909839,1746413440780,-450.0,0.00019996,2]
[359909840,1746413440789,-292.0377185,0.00019996,2]
[359909841,1746413440799,-257.87872418,0.00019996,2]
[359909842,1746413440808,-450.0,0.00019996,2]
[359909843,1746413440817,-450.0,0.00019996,2]
[359909844,1746413440826,-450.0,0.00019996,2]
[359909845,1746413440836,-539.18,0.00019996,2]
[359909846,1746413440845,-450.0,0.00019996,2]
[359909847,1746413440854,-450.0,0.00019996,2]
[359909848,1746413440864,-461.38929947,0.00019996,2]
[359909849,1746413440873,-459.93570431,0.00019996,2]
[359909850,1746413440883,-450.0,0.00019996,2]
[359909851,1746413440893,-476.52283068,0.00019996,2]
[359909852,1746413440902,-311.31513355,0.00019996,2]
[359909853,1746413440912,-450.0,0.00019996,2]
[359909854,1746413440922,-470.0,0.00019996,2]
[359909855,1746413440931,-457.95442225,0.00019996,2]
[359909856,1746413440940,-483.84421354,0.00019996,2]
[359909857,1746413440950,-467.16628513,0.00019996,2]
[359909858,1746413440959,-456.15465525,0.00019996,2]
[359909859,1746413440969,-464.32526984,0.00019996,2]
[359909860,1746413440979,-450.0,0.00019996,2]
[359909861,1746413440993,-469.53960709,0.00019996,2]
[359909862,1746413441002,-450.0,0.00019996,2]
[359909863,1746413441011,-453.70487618,0.00019996,2]
[359909864,1746413441020,-499.6749523,0.00019996,2]
[359909865,1746413441029,-470.0,0.00019996,2]
[359909866,1746413441039,-571.63685191,0.00019996,2]
[359909867,1746413441049,-477.45176328,0.00019996,2]
[359909868,1746413441059,-338.75927346,0.00019996,2]
[359909869,1746413441070,-450.0,0.00019996,2]
[359909870,1746413441081,-450.0,0.00019996,2]
[359909871,1746413441091,-153.78678361,0.00019996,2]
[359909872,1746413441102,-477.05590144,0.00019996,2]
[359909873,1746413441111,-436.86609465,0.00019997,2]
[359909874,1746413441120,-303.0345973,0.00019997,2]
[359909875,1746413441130,-450.0,0.00019997,2]
[359909876,1746413441139,-450.0,0.00019997,2]
[359909877,1746413441149,-450.0,0.00019997,2]
[359909878,1746413441159,-450.0,0.00019997,2]
[359909879,1746413441168,-250.0,0.00019997,2]
[359909880,1746413441177,-450.0,0.00019997,2]
[359909881,1746413441186,-450.0,0.00019997,2]
[359909882,1746413441196,-450.0,0.00019997,2]
[359909883,1746413441206,-450.0,0.00019997,2]
[359909884,1746413441216,-488.45689752,0.00019997,2]
[359909885,1746413441226,-500.0,0.00019997,2]
[359909886,1746413441235,-450.0,0.00019997,2]
[359909887,1746413441247,-450.0,0.00019997,2]
[359909888,1746413441258,-450.0,0.00019997,2]